Cogmind - Beta 12 *** ADVENTURER MODE // 2023.06.15 @ 16:09:46 Player: Ms. V3-11A Result: Core destroyed Performance ------------- Evolutions (7) 3500 Regions Visited (19) 3800 Robots Destroyed (279) 1395 Value Destroyed (13031) 13031 Prototype IDs (35) 700 Alien Tech Used (1) 200 Bonus (3171) 3171 TOTAL SCORE: 25797 Bonus ------- High Alert Combat Kills 1420 Follower Combat Kills 2158 Entered Garrisons 200 Used RIF Installer 500 Met Zhirov 300 Built Enhanced Grunts 300 Met R17 at Cetus 500 Friendly Fire -2207 Cogmind --------- Core Integrity 0/1300 Matter 55/300 Energy 1176/1924 System Corruption 47% Temperature Critical (852) Movement Hovering (193) Ox1 Location -3/Research Parts ------- > --- POWER (3) -------- Multi-Particle Reactor > --- PROPULSION (4) --- Hovering Antigrav-Cooled Exoskeleton > --- UTILITY (10) ----- Armored Scrap Engine Advanced Cryofiber Web Advanced Heat Sink Huge Storage Unit Advanced Energy Well Medium Regenerative Plating Advanced System Shield > --- WEAPON (4) ------- Backup Laser VII > --- INVENTORY (25) --- Advanced Power Amplifier Large Storage Unit Advanced Energy Well (500) Large Matter Pod (150) High-capacity Matter Pod (200) Long-range Sensor Array Improved Weapon Cycler Advanced Weapon Cycler Experimental Propulsion Shielding Centrium Medium Armor Plating Experimental Thermal Shield Point Defense System Improved System Shield Improved System Shield Improved Dynamic Insulation System Transdimensional Reconstructor Improved Proton Missile Launcher Long-range Missile Launcher Advanced Remote Datajack Power Maul Peak State ------------ > --- POWER ------------ Multi-Particle Reactor > --- PROPULSION ------- Hovering Antigrav-Cooled Exoskeleton > --- UTILITY ---------- Armored Scrap Engine Advanced Cryofiber Web Advanced Heat Sink Advanced Cooling System Huge Storage Unit Advanced Energy Well Machine Analyzer Medium Regenerative Plating Advanced System Shield > --- WEAPON ----------- Compact HERF Cannon EM Disruptor Construct/C Electro Gamma Construct/G Electro Gamma Construct/G > --- INVENTORY -------- Advanced Power Amplifier Large Storage Unit Advanced Energy Well Large Matter Pod High-capacity Matter Pod Long-range Sensor Array Improved Weapon Cycler Advanced Weapon Cycler Experimental Propulsion Shielding Centrium Medium Armor Plating Experimental Thermal Shield Point Defense System Improved System Shield Improved System Shield Improved Dynamic Insulation System Transdimensional Reconstructor Improved Proton Missile Launcher Long-range Missile Launcher Advanced Remote Datajack Power Maul [Rating: 146] Favorites ----------- Power Constructs Engine Improved Ion Engine Reactor Constructs Propulsion Constructs Treads Light Treads Leg Aluminum Leg Hover Unit Constructs Utility Armored Scrap Engine Device Armored Scrap Engine Storage High-capacity Storage Unit Processor Machine Analyzer Hackware Improved Hacking Suite Protection Centrium Medium Armor Plating Weapon Constructs Energy Gun EM Pulse Gun Energy Cannon Constructs Ballistic Gun Constructs Launcher Improved Concussive RPG Impact Weapon Power Maul Build | -11 -10 -10 -10 -9 -8 -8 -8 -6 -6 -6 -5 -4 -4 -4 -4 -4 -4 -3 -3 ------- Run | Jun Mat Min Exi Min Mat Sto Rec Fac Ext Cet Fac Fac Gar Fac Upp Upp Zhi Pro Res Slots Evolved 14 | . . . . . 4 . . 4 . . 2 2 . . . . . . 2 Power 2 | . . . . . . . . 1 . . . 1 . . . . . . . Propulsion 2 | . . . . . 1 . . 1 . . . . . . . . . . . Utility 8 | . . . . . 2 . . 2 . . 2 1 . . . . . . 1 Weapon 2 | . . . . . 1 . . . . . . . . . . . . . 1 Parts Attached 120 | . 10 6 2 . 7 14 6 23 6 1 13 . 7 1 1 . 3 1 19 Power 6 | . 1 1 . . 1 1 1 1 . . . . . . . . . . . Engine 6 | . 1 1 . . 1 1 1 1 . . . . . . . . . . . Core . | . . . . . . . . . . . . . . . . . . . . Reactor . | . . . . . . . . . . . . . . . . . . . . Propulsion 21 | . 4 2 . . 2 3 4 6 . . . . . . . . . . . Treads 17 | . 2 2 . . 2 3 4 4 . . . . . . . . . . . Leg 2 | . 2 . . . . . . . . . . . . . . . . . . Wheel . | . . . . . . . . . . . . . . . . . . . . Hover 2 | . . . . . . . . 2 . . . . . . . . . . . Flight . | . . . . . . . . . . . . . . . . . . . . Utility 58 | . 3 . . . 3 2 1 8 5 1 13 . 7 1 . . 3 . 11 Device 28 | . 2 . . . 2 1 1 2 2 . 6 . 6 1 . . . . 5 Storage 4 | . 1 . . . . . . . . . 2 . . . . . . . 1 Processor 1 | . . . . . . . . . . . . . . . . . . . 1 Hackware 6 | . . . . . . 1 . 1 . . 3 . . . . . . . 1 Protection 19 | . . . . . 1 . . 5 3 1 2 . 1 . . . 3 . 3 Artifact . | . . . . . . . . . . . . . . . . . . . . Weapon 35 | . 2 3 2 . 1 8 . 8 1 . . . . . 1 . . 1 8 Energy Gun 7 | . . 2 . . . 2 . 1 . . . . . . . . . . 2 Energy Cannon 2 | . . . . . . . . . . . . . . . . . . . 2 Ballistic Gun 15 | . 2 1 1 . 1 4 . 3 . . . . . . . . . . 3 Ballistic Cannon . | . . . . . . . . . . . . . . . . . . . . Launcher 8 | . . . 1 . . 1 . 3 . . . . . . 1 . . 1 1 Special Weapon . | . . . . . . . . . . . . . . . . . . . . Impact Weapon 3 | . . . . . . 1 . 1 1 . . . . . . . . . . Slashing Weapon . | . . . . . . . . . . . . . . . . . . . . Piercing Weapon . | . . . . . . . . . . . . . . . . . . . . Special Melee Weapon . | . . . . . . . . . . . . . . . . . . . . Unidentified Prototypes 10 | . . . . . . 3 . 1 . 1 1 . . . . . 2 . 2 Corrupted Parts 4 | . . . . . . 1 . . . . . . . . . . . . 3 System Corruption 20 | . . . . . . 4 . . . . . . . . . . . . 16 Parts Lost 33 | . 1 5 . . . . . 4 2 . 1 . . . . . . 2 18 Power 2 | . . 1 . . . . . . . . . . . . . . . . 1 Propulsion 5 | . 1 1 . . . . . 2 . . . . . . . . . . 1 Utility 11 | . . . . . . . . 1 1 . 1 . . . . . . 1 7 Weapon 15 | . . 3 . . . . . 1 1 . . . . . . . . 1 9 Highest Loss Streak 5 | . 1 5 . . . . . 2 1 . 1 . . . . . . 2 5 To Critical Strikes 1 | . . . . . . . . . . . . . . . . . . . 1 Average Slot Usage (%) 71 | . 96 98 100 100 98 99 69 63 63 66 64 57 62 63 62 63 62 59 62 Engine 4 | . 14 13 14 14 9 9 7 5 5 . . . . . . . . . . Reactor 1 | . . . . . . . . . . 2 4 . 3 1 3 5 5 5 4 Treads 7 | . 7 12 28 28 26 27 8 3 2 . . 5 2 . 4 4 5 5 1 Leg 3 | . 20 15 . . . . 6 2 3 6 4 . 2 4 . . . . . Device 14 | . 11 14 14 14 17 17 9 12 12 13 20 15 20 21 21 21 21 17 17 Storage 7 | . 14 14 14 14 9 9 9 6 6 6 5 5 5 5 5 5 5 5 8 Hackware 6 | . . . . . . . 9 6 6 6 7 10 10 10 10 10 10 10 3 Protection 3 | . . . . . 8 9 . 4 6 6 4 5 5 5 5 5 4 5 4 Energy Gun 5 | . . 6 14 14 9 8 6 4 4 16 3 5 2 . 1 . . . 5 Energy Cannon 1 | . . . . . . . . 1 2 . . . 4 2 7 . . . 4 Ballistic Gun 8 | . 27 20 11 14 16 17 12 7 6 . 3 . 2 2 . 4 5 5 3 Ballistic Cannon 1 | . . . . . . . . . 1 3 4 5 1 4 1 5 5 5 . Naked Turns . | . . . . . . . . . . . . . . . . . . . . Heaviest Build 177 | 13 52 52 52 51 65 66 57 78 90 85 155 146 168 137 161 161 161 138 177 Greatest Support 144 | 20 40 40 40 40 60 60 60 86 118 118 118 118 118 118 144 144 144 105 106 Greatest Overweight (x) 4 | . 2 4 1 1 1 1 2 2 1 . 1 1 1 1 1 1 1 1 1 Average Overweight (x) . | . . 1 1 1 . 1 . . . . . 1 1 1 1 1 . 1 1 Largest Inventory Capacity 25 | 8 20 20 20 20 20 20 20 20 20 20 25 25 25 25 25 25 25 25 25 Average Capacity 21 | 8 16 20 20 20 20 20 20 20 20 20 23 25 25 25 25 25 25 25 25 Most Carried 24 | 5 20 20 18 18 20 20 20 20 20 20 21 20 20 22 22 21 24 22 22 Average Carried 19 | 5 10 18 17 18 19 19 19 19 17 19 19 19 19 21 21 21 21 21 19 Final Capacity 25 | 8 20 20 20 20 20 20 20 20 20 20 25 25 25 25 25 25 25 25 25 Final Carried 22 | 4 20 17 18 18 20 20 20 19 20 20 19 19 19 22 21 21 22 22 20 Scrap Engine Consumption 466 | . . . . . . . 48 103 67 35 19 1 63 21 35 . 6 3 65 Constructs Created 15 | . . . . . . . 3 3 2 . . . . . 1 . . . 6 Constructs Modified 164 | . . . . . . . 12 31 25 8 14 1 29 8 14 4 3 . 15 Class Distribution -------------------- 55% | Hacker-Construct 10% | Mutant 6% | Hacker-Mutant 6% | Commander-Construct 4% | Scavenger-Mutant 4% | Tank 3% | Scavenger-Tank Dominant Class ---------------- Mutant | -10/Materials Mutant | -10/Mines Mutant | -10/Exiles Mutant | -9/Mines Tank | -8/Materials Scavenger-Tank | -8/Storage Hacker-Construct | -8/Recycling Hacker-Construct | -6/Factory Hacker-Construct | -6/Extension Commander-Construct | -6/Cetus Hacker-Construct | -5/Factory Hacker-Construct | -4/Factory Hacker-Construct | -4/Garrison Hacker-Construct | -4/Factory Hacker-Construct | -4/Upper Caves Hacker-Construct | -4/Upper Caves Hacker-Construct | -4/Zhirov Hacker-Construct | -3/Proximity Caves Hacker-Construct | -3/Research Resources | -11 -10 -10 -10 -9 -8 -8 -8 -6 -6 -6 -5 -4 -4 -4 -4 -4 -4 -3 -3 ----------- Run | Jun Mat Min Exi Min Mat Sto Rec Fac Ext Cet Fac Fac Gar Fac Upp Upp Zhi Pro Res Matter Collected 5077 | 191 506 85 135 . 228 464 709 1065 446 151 95 . 100 10 70 . 75 43 704 Remotely . | . . . . . . . . . . . . . . . . . . . . Salvage Created 17465 | . 646 230 . . 248 1063 2105 3745 1771 372 439 . 2194 383 1023 . 399 241 2606 Parts 812 | . 35 15 . . 20 71 85 155 72 23 21 . 88 16 45 . 3 24 139 Haulers Intercepted 13 | . 2 . . . . 2 4 2 . . . . . 1 . . . . 2 Recyclers Shooed 10 | . . . . . . . 1 7 . . . . . . . . . . 2 Parts Field Recycled . | . . . . . . . . . . . . . . . . . . . . Retrieved Matter . | . . . . . . . . . . . . . . . . . . . . Parts Self-Destructed 34 | . . . . . . . . . . . . . . . 14 . 1 19 . Prevented 31 | . . . . . . . . . . . . . . . 31 . . . . Kills | -11 -10 -10 -10 -9 -8 -8 -8 -6 -6 -6 -5 -4 -4 -4 -4 -4 -4 -3 -3 ------- Run | Jun Mat Min Exi Min Mat Sto Rec Fac Ext Cet Fac Fac Gar Fac Upp Upp Zhi Pro Res Combat Hostiles Destroyed 227 | . 12 8 . . 7 16 15 49 21 5 7 . 32 4 13 . . 9 29 Guns 141 | . 12 8 . . 7 16 15 41 15 5 3 . 2 . . . . 1 16 Cannons 59 | . . . . . . . . 4 6 . 4 . 28 4 6 . . 4 3 AOE 15 | . . . . . . . . 4 . . . . 2 . 3 . . 4 2 Classes Destroyed 21 | . 3 2 . . . 3 2 6 1 . 1 . . . 1 . . 1 1 Worker 2 | . . . . . . . . 1 . . . . . . . . . . 1 Builder 10 | . 1 . . . . 3 2 4 . . . . . . . . . . . Hauler 13 | . 2 . . . . 2 4 2 . . . . . 1 . . . . 2 Recycler 26 | . . . . . . 2 12 5 5 . . . . . . . . . 2 Mechanic 2 | . . . . . . . . 1 . . . . . . . . . . 1 Operator 2 | . . . . . . 1 . . . . 1 . . . . . . . . Drone 2 | . . . . . . . . . . . . . . . . . . 2 . Watcher 1 | . . . . . . . . . . . . . . . . . . . 1 Swarmer 32 | . . 5 . . 3 3 . 3 4 . . . 3 . 1 . . 5 5 Saboteur 1 | . . . . . . . . . . . 1 . . . . . . . . Grunt 86 | . 12 1 . . 2 5 4 27 7 3 1 . 14 1 5 . . . 4 Brawler 6 | . . . . . . . 3 1 . . 1 . . . 1 . . . . Duelist 9 | . . . . . . . . 2 . 1 2 . 4 . . . . . . Sentry 41 | . . 2 . . 2 7 3 5 8 . 2 . 2 2 2 . . . 6 Demolisher 3 | . . . . . . . 3 . . . . . . . . . . . . Specialist 5 | . . . . . . . . 4 . . . . 1 . . . . . . Hunter 14 | . . . . . . 1 2 3 . . . . 2 . 4 . . . 2 Programmer 22 | . . . . . . . . 3 1 . . . 3 1 . . . 2 12 Heavy 1 | . . . . . . . . 1 . . . . . . . . . . . Behemoth 2 | . . . . . . . . . 1 . . . 1 . . . . . . Cetus Guard 1 | . . . . . . . . . . 1 . . . . . . . . . Samaritan 1 | . . . . . . . . . . . . . . . 1 . . . . Thug 1 | . . . . . . . . . . . . . 1 . . . . . . Savage 1 | . . . . . . . . . . . . . 1 . . . . . . Best Kill Streak 10 | . 4 3 . . 3 6 8 8 5 4 2 . 10 2 8 . . 5 7 Combat Bots Only 10 | . 4 3 . . 3 3 2 7 4 4 2 . 10 2 8 . . 5 7 Max Kills in Single Turn 3 | . 2 1 . . 2 2 2 2 1 2 1 . 1 1 2 . . 3 2 Gunslinging 1 | . 1 . . . 1 1 . 1 . 1 . . . . . . . . . Exploded 3 | . . . . . . . . 2 . . . . 1 . 2 . . 3 1 Melee . | . . . . . . . . . . . . . . . . . . . . Uniques/NPCs Destroyed 2 | . . . . . . . . . . 2 . . . . . . . . . A7 (-6/Cetus) Revision 17 (-6/Cetus) Combat | -11 -10 -10 -10 -9 -8 -8 -8 -6 -6 -6 -5 -4 -4 -4 -4 -4 -4 -3 -3 -------- Run | Jun Mat Min Exi Min Mat Sto Rec Fac Ext Cet Fac Fac Gar Fac Upp Upp Zhi Pro Res Damage Taken 18622 | . 457 569 . . 108 318 201 3546 1201 280 359 . 2201 435 1076 . 598 508 6765 Core 2674 | . 67 87 . . . 23 22 557 72 46 13 . 170 96 101 . . 33 1387 Absorbed by Shields 591 | . . . . . 44 97 . . 26 38 27 . 359 . . . . . . Regen/Repaired (Parts) 7164 | . . . . . . . 80 1019 1161 11 268 . 1350 200 586 12 196 56 2225 Core Remaining (%) 68 | 100 . . . 38 . . 91 . . 20 98 . . . . . . 65 . Volleys Fired 733 | . 39 28 2 . 10 49 76 189 50 20 17 . 84 10 27 . 5 12 115 Largest 4 | . 2 2 1 . 3 3 3 3 3 3 2 . 2 2 2 . 2 2 4 Hottest 311 | . 46 63 33 . 86 103 104 186 159 151 176 . 159 131 131 . 129 129 311 Shots Fired 1617 | . 78 45 2 . 28 125 169 387 128 60 34 . 165 20 45 . 10 18 303 Gun 1240 | . 78 45 . . 28 125 169 325 88 57 17 . 72 1 3 . 5 9 218 Cannon 355 | . . . . . . . . 52 40 3 17 . 93 19 37 . 5 7 82 Launcher 22 | . . . 2 . . . . 10 . . . . . . 5 . . 2 3 Special . | . . . . . . . . . . . . . . . . . . . . Kinetic 830 | . 78 37 . . 18 76 129 216 60 3 34 . 51 11 6 . 10 16 85 Thermal 536 | . . . . . . 49 40 161 68 57 . . 114 9 22 . . . 16 Explosive 17 | . . . 2 . . . . 10 . . . . . . . . . 2 3 Electromagnetic 234 | . . 8 . . 10 . . . . . . . . . 17 . . . 199 Robot Hit Streak 51 | . 25 36 . . 51 17 27 26 19 24 6 . 15 13 10 . 14 9 43 Robot Miss Streak 10 | . 1 1 . . 1 1 1 4 2 2 2 . 3 1 1 . 1 5 10 Penetration Max 1 | . . . . . . . . 1 1 . 1 . 1 . . . . . . Secondary Targets 21 | . 1 3 . . 3 2 . 6 . 4 . . . . . . . . 2 Max Gunslinging Chain 1 | . 1 1 . . 1 1 . 1 . 1 . . . . . . . . 1 Shots Hit Robots 1199 | . 63 42 . . 23 80 127 302 87 40 21 . 116 17 31 . 9 15 226 Core Hits 577 | . 23 11 . . 12 36 49 159 51 30 11 . 56 9 18 . 12 13 87 Critical Kills 4 | . . . . . . . . 1 . 1 1 . . . . . . . 1 Critical Parts Destroyed 3 | . . . . . . . . 2 . . . . 1 . . . . . . Critical Strikes 15 | . . . . . . 5 . 3 . 1 1 . 2 . . . . . 3 Burn 6 | . . . . . . 5 . . . . . . 1 . . . . . . Destroy 7 | . . . . . . . . 3 . 1 1 . 1 . . . . . 1 Corrupt 2 | . . . . . . . . . . . . . . . . . . . 2 Melee Attacks 21 | . . . . . . 2 . 1 18 . . . . . . . . . . Impact 21 | . . . . . . 2 . 1 18 . . . . . . . . . . Slashing . | . . . . . . . . . . . . . . . . . . . . Piercing . | . . . . . . . . . . . . . . . . . . . . Sneak Attacks . | . . . . . . . . . . . . . . . . . . . . Combat Hostiles . | . . . . . . . . . . . . . . . . . . . . Follow-up Attacks . | . . . . . . . . . . . . . . . . . . . . Damage Inflicted 35579 | . 950 563 . . 442 1379 2327 8480 2718 1243 1364 . 6373 1003 2595 . 346 851 4945 Guns 19957 | . 950 563 . . 353 1379 2320 5813 1731 1130 507 . 1689 . 55 . 145 191 3131 Cannons 12557 | . . . . . . . . 1563 987 113 857 . 4342 1003 1767 . 201 404 1320 Explosions 3013 | . . . . . 89 . . 1087 . . . . 342 . 773 . . 256 466 Melee . | . . . . . . . . . . . . . . . . . . . . Ramming 52 | . . . . . . . 7 17 . . . . . . . . . . 28 Kinetic 14981 | . 950 479 . . 238 776 1697 3748 1153 113 1364 . 1288 363 148 . 346 595 1723 Thermal 15364 | . . . . . 89 603 623 3628 1565 1130 . . 5025 640 1432 . . . 629 Explosive 1580 | . . . . . . . . 1087 . . . . . . . . . 256 237 Electromagnetic 3602 | . . 84 . . 115 . . . . . . . 60 . 1015 . . . 2328 Impact . | . . . . . . . . . . . . . . . . . . . . Slashing . | . . . . . . . . . . . . . . . . . . . . Piercing . | . . . . . . . . . . . . . . . . . . . . Highest Corruption 47 | . . . . . . 5 5 2 2 2 2 . . . . . . . 47 Average Corruption 4 | . . . . . . 4 5 1 2 2 2 . . . . . . . 13 Corruption Purged . | . . . . . . . . . . . . . . . . . . . . Corruption Blocked . | . . . . . . . . . . . . . . . . . . . . Effects 291 | . . . . . . 21 106 33 36 11 5 . . . . . . . 79 Message Errors 63 | . . . . . . 4 30 6 7 1 . . . . . . . . 15 Matter Fused 70 | . . . . . . 4 26 8 11 3 . . . . . . . . 18 Heat Flow Errors 37 | . . . . . . 4 10 6 5 3 1 . . . . . . . 8 Energy Discharges 28 | . . . . . . 4 9 3 3 2 2 . . . . . . . 5 Parts Rejected 5 | . . . . . . . 4 . 1 . . . . . . . . . . Parts Fused 6 | . . . . . . 2 . 2 1 . . . . . . . . . 1 Data Loss (minor) 33 | . . . . . . 1 10 6 4 2 2 . . . . . . . 8 Data Loss (major) 14 | . . . . . . . 7 1 1 . . . . . . . . . 5 Misfires 10 | . . . . . . . 6 1 . . . . . . . . . . 3 Alerts 9 | . . . . . . 2 3 . 2 . . . . . . . . . 2 Weapon Failures 16 | . . . . . . . 1 . 1 . . . . . . . . . 14 Overload Shots 3 | . . . . . . . . . . . . . . . . . . . 3 Overflow Damage 799 | . . . . . . . . 31 10 . 67 . 317 59 185 . 40 22 68 Projectiles 722 | . . . . . . . . 22 10 . 67 . 317 59 185 . 40 22 . Explosions 77 | . . . . . . . . 9 . . . . . . . . . . 68 Melee . | . . . . . . . . . . . . . . . . . . . . Knockbacks 16 | . . . . . . . . 3 2 1 3 . 1 1 4 . . 1 . Impact 1 | . . . . . . . . 1 . . . . . . . . . . . Kinetic 13 | . . . . . . . . 2 2 1 3 . 1 1 2 . . 1 . Secondary 2 | . . . . . . . . . . . . . . . 2 . . . . Self-Inflicted Damage 254 | . . . . . 8 . . 181 . . . . 25 . . . . 36 4 Shots 10 | . . . . . 1 . . 7 . . . . 1 . . . . 1 . Rammed 2 | . . . . . . . . . . . . . . . . . . . 2 Targets Rammed 7 | . . . . . . . 1 1 . . . . . . . . . . 5 Kicked 5 | . . . . . . . 1 1 . . . . . . . . . . 3 Crushed . | . . . . . . . . . . . . . . . . . . . . Highest Temperature 2870 | . 14 75 . . 81 401 276 360 254 366 356 . 468 . . . . . 2870 Average Temperature 205 | . 4 24 . . 31 87 76 60 70 130 143 . 121 . . . . . 934 Received Heat Transfer 3339 | . 309 216 . . 48 121 144 858 405 112 63 . 476 99 172 . . . 316 Effects 63 | . . . . . . 1 1 4 . 2 3 . 5 . . . . . 47 Shutdowns 5 | . . . . . . 1 . . . . . . 1 . . . . . 3 Energy Bleed 9 | . . . . . . . 1 . . 1 . . . . . . . . 7 Interference 20 | . . . . . . . . 4 . 1 3 . 3 . . . . . 9 Matter Decay 6 | . . . . . . . . . . . . . . . . . . . 6 Short Circuit 5 | . . . . . . . . . . . . . . . . . . . 5 Damage (minor) 6 | . . . . . . . . . . . . . 1 . . . . . 5 Damage (major) 7 | . . . . . . . . . . . . . . . . . . . 7 Damage (core) 5 | . . . . . . . . . . . . . . . . . . . 5 Siege Activations . | . . . . . . . . . . . . . . . . . . . . Robots Corrupted 12 | . . . . . . . . . . . . . . . 4 . . . 8 Combat Hostiles 12 | . . . . . . . . . . . . . . . 4 . . . 8 Parts Fried 30 | . . . . . . . . . . . . . . . 3 . . . 27 Impact Corruptions . | . . . . . . . . . . . . . . . . . . . . Robots Melted . | . . . . . . . . . . . . . . . . . . . . Combat Hostiles . | . . . . . . . . . . . . . . . . . . . . Parts Melted 11 | . . . . . . 1 2 6 1 . . . 1 . . . . . . Heat Transferred 10942 | . . . . . 150 1554 1295 3020 940 1015 . . 1447 259 555 . . . 707 Parts Sabotaged . | . . . . . . . . . . . . . . . . . . . . Parts Stolen . | . . . . . . . . . . . . . . . . . . . . Parts Stripped . | . . . . . . . . . . . . . . . . . . . . Power Chain Reactions 5 | . . . . . 1 . . . . . . . 3 . . . . . 1 Missiles Intercepted . | . . . . . . . . . . . . . . . . . . . . Alert | -11 -10 -10 -10 -9 -8 -8 -8 -6 -6 -6 -5 -4 -4 -4 -4 -4 -4 -3 -3 ------- Run | Jun Mat Min Exi Min Mat Sto Rec Fac Ext Cet Fac Fac Gar Fac Upp Upp Zhi Pro Res Peak Influence 1564 | . 256 121 . . 190 270 145 617 262 703 749 312 1564 832 . . . . 375 Initial 711 | . . 2 . . . . 43 100 12 37 342 312 191 711 . . . . 150 Average 246 | . 107 50 . . 82 101 28 225 84 403 511 312 935 715 . . . . 156 Maximum Alert Level 4 | . 1 . . . . 1 . 2 1 3 3 1 4 3 . . . . 1 Low Security (%) 63 | 100 90 100 . 100 100 72 100 56 93 12 . . 1 . . . . . 65 Level 1 16 | . 9 . . . . 27 . 20 6 52 41 100 2 . . . . . 34 Level 2 8 | . . . . . . . . 22 . 9 41 . 18 23 . . . . . Level 3 8 | . . . . . . . . . . 26 17 . 47 76 . . . . . Level 4 2 | . . . . . . . . . . . . . 29 . . . . . . Level 5 . | . . . . . . . . . . . . . . . . . . . . High Security . | . . . . . . . . . . . . . . . . . . . . Max Security . | . . . . . . . . . . . . . . . . . . . . Squads Dispatched 34 | . 3 . . . . 1 . 16 1 . 3 . . 1 . . . . 9 Investigation 7 | . 3 . . . . . . 3 1 . . . . . . . . . . Extermination 7 | . . . . . . . . 3 . . . . . . . . . . 4 Reinforcement 9 | . . . . . . 1 . 6 . . . . . . . . . . 2 Assault 4 | . . . . . . . . 1 . . 2 . . 1 . . . . . Garrison 7 | . . . . . . . . 3 . . 1 . . . . . . . 3 Intercept . | . . . . . . . . . . . . . . . . . . . . Searches Triggered . | . . . . . . . . . . . . . . . . . . . . Construction Impeded . | . . . . . . . . . . . . . . . . . . . . Haulers Reinforced 2 | . . . . . . . . 1 . . . . . . . . . . 1 Active Scanning Responses . | . . . . . . . . . . . . . . . . . . . . Cargo Convoy Interrupts 1 | . . . . . . . . 1 . . . . . . . . . . . Stealth | -11 -10 -10 -10 -9 -8 -8 -8 -6 -6 -6 -5 -4 -4 -4 -4 -4 -4 -3 -3 --------- Run | Jun Mat Min Exi Min Mat Sto Rec Fac Ext Cet Fac Fac Gar Fac Upp Upp Zhi Pro Res Distress Signals 19 | . 2 . . . 2 3 . 3 2 2 . . . 1 . . . 1 3 Communications Jammed . | . . . . . . . . . . . . . . . . . . . . Distress Signals . | . . . . . . . . . . . . . . . . . . . . Times Spotted 333 | . 17 9 . . 10 22 3 65 28 32 27 . 38 8 17 . . 9 48 Peak Tracking Total 9 | . 6 4 . . 5 5 1 5 4 8 5 . 7 4 9 . . 5 7 Tactical Retreats 8 | . 1 . . . . 1 . . . . . . 3 1 1 . . . 1 Traps | -11 -10 -10 -10 -9 -8 -8 -8 -6 -6 -6 -5 -4 -4 -4 -4 -4 -4 -3 -3 ------- Run | Jun Mat Min Exi Min Mat Sto Rec Fac Ext Cet Fac Fac Gar Fac Upp Upp Zhi Pro Res Traps Triggered 21 | . 2 . . . . 1 . 2 3 . 4 . 8 . . . . . 1 Indirectly . | . . . . . . . . . . . . . . . . . . . . Trap Hack Attempts . | . . . . . . . . . . . . . . . . . . . . Triggered . | . . . . . . . . . . . . . . . . . . . . Disarmed . | . . . . . . . . . . . . . . . . . . . . Reprogrammed . | . . . . . . . . . . . . . . . . . . . . Reused . | . . . . . . . . . . . . . . . . . . . . Traps Extracted . | . . . . . . . . . . . . . . . . . . . . Installed . | . . . . . . . . . . . . . . . . . . . . Triggered 4 | . . . . . . . . 2 . . . . . . . . . . 2 Machines | -11 -10 -10 -10 -9 -8 -8 -8 -6 -6 -6 -5 -4 -4 -4 -4 -4 -4 -3 -3 ---------- Run | Jun Mat Min Exi Min Mat Sto Rec Fac Ext Cet Fac Fac Gar Fac Upp Upp Zhi Pro Res Machines Disabled 25 | . . 1 . . . 4 1 4 3 2 5 . 4 . . . 1 . . Max in Single Turn 2 | . . 1 . . . 1 1 1 1 1 2 . 2 . . . 1 . . Garrison Access 5 | . . . . . . 1 . 1 . . 1 . . 1 . . . . 1 Garrison Relay 2 | . . . . . . . . . . . . . 2 . . . . . . Phase Generator 1 | . . . . . . . . . . . . . 1 . . . . . . Machines Repaired . | . . . . . . . . . . . . . . . . . . . . Machines Sabotaged . | . . . . . . . . . . . . . . . . . . . . Overloaded Fab Kills . | . . . . . . . . . . . . . . . . . . . . Hacking | -11 -10 -10 -10 -9 -8 -8 -8 -6 -6 -6 -5 -4 -4 -4 -4 -4 -4 -3 -3 --------- Run | Jun Mat Min Exi Min Mat Sto Rec Fac Ext Cet Fac Fac Gar Fac Upp Upp Zhi Pro Res Machines Accessed 57 | . 7 . 1 . 3 5 10 6 11 . . 1 2 2 . . 4 1 4 Terminals 40 | . 7 . . . 3 4 6 4 11 . . . 2 . . . . 1 2 Fabricators 2 | . . . . . . . . 1 . . . . . 1 . . . . . Repair Stations 1 | . . . . . . . . . . . . . . . . . . . 1 Recycling Units 4 | . . . . . . . 4 . . . . . . . . . . . . Scanalyzers . | . . . . . . . . . . . . . . . . . . . . Garrison Access 5 | . . . . . . 1 . 1 . . . 1 . 1 . . . . 1 Total Hacks 140 | . 19 . 1 . 10 12 28 17 18 . . 1 2 4 . . 17 1 10 Successful 80 | . 12 . 1 . 4 6 10 7 13 . . 1 2 1 . . 17 1 5 Failed 60 | . 7 . . . 6 6 18 10 5 . . . . 3 . . . . 5 Catastrophic 9 | . 3 . . . 1 . 2 2 . . . . . . . . . . 1 Database Lockouts . | . . . . . . . . . . . . . . . . . . . . Manual 38 | . 4 . . . 7 9 . 12 . 2 . . . . . . . . 4 Terminals 103 | . 19 . . . 10 10 21 14 18 . . . 2 . . . . 1 8 Fabricators 4 | . . . . . . . . 1 . . . . . 3 . . . . . Repair Stations 1 | . . . . . . . . . . . . . . . . . . . 1 Recycling Units 7 | . . . . . . . 7 . . . . . . . . . . . . Scanalyzers . | . . . . . . . . . . . . . . . . . . . . Garrison Access 7 | . . . . . . 2 . 2 . . . 1 . 1 . . . . 1 Terminal Hacks 61 | . 9 . 1 . 3 2 7 3 13 . . . 2 . . . 17 1 3 Record 9 | . . . 1 . . . . 1 1 . . . . . . . 5 1 . Part Schematic 12 | . 1 . . . . 2 3 . 2 . . . . . . . 4 . . Robot Schematic 1 | . . . . . . . . . . . . . . . . . . . 1 Robot Analysis 5 | . . . . . . . . . 1 . . . . . . . 4 . . Prototype ID Bank 11 | . 3 . . . 1 . 2 . 1 . . . . . . . 4 . . Open Door 7 | . . . . . . . . . 6 . . . 1 . . . . . . Level Access Points 1 | . . . . . . . . . 1 . . . . . . . . . . Branch Access Points 4 | . 1 . . . 1 . . 1 . . . . . . . . . . 1 Emergency Access Points 2 | . 1 . . . . . . . . . . . 1 . . . . . . Terminal Index 2 | . . . . . . . . 1 . . . . . . . . . . 1 Transport Status 1 | . . . . . . . 1 . . . . . . . . . . . . Hauler Manifests 1 | . . . . . . . 1 . . . . . . . . . . . . Registered Components 1 | . 1 . . . . . . . . . . . . . . . . . . Zone Layout 4 | . 2 . . . 1 . . . 1 . . . . . . . . . . Fabricator Hacks 1 | . . . . . . . . 1 . . . . . . . . . . . Network Status 1 | . . . . . . . . 1 . . . . . . . . . . . Repair Station Hacks . | . . . . . . . . . . . . . . . . . . . . Recycling Unit Hacks 3 | . . . . . . . 3 . . . . . . . . . . . . Retrieve Components 3 | . . . . . . . 3 . . . . . . . . . . . . Scanalyzer . | . . . . . . . . . . . . . . . . . . . . Garrison Access Hacks 4 | . . . . . . 1 . . . . . 1 . 1 . . . . 1 Unlock Access 1 | . . . . . . . . . . . . 1 . . . . . . . Seal Access 3 | . . . . . . 1 . . . . . . . 1 . . . . 1 Unauthorized Hacks 11 | . 3 . . . 1 3 . 3 . . . . . . . . . . 1 Terminals 11 | . 3 . . . 1 3 . 3 . . . . . . . . . . 1 Botnet 11 | . 3 . . . 1 3 . 3 . . . . . . . . . . 1 Fabricators . | . . . . . . . . . . . . . . . . . . . . Repair Stations . | . . . . . . . . . . . . . . . . . . . . Recycling Units . | . . . . . . . . . . . . . . . . . . . . Scanalyzers . | . . . . . . . . . . . . . . . . . . . . Garrison Access . | . . . . . . . . . . . . . . . . . . . . Data Cores Recovered 1 | . . . . . . . . . 1 . . . . . . . . . . Used 1 | . . . . . . . . . 1 . . . . . . . . . . Hacking Detections 37 | . 7 . . . 3 6 5 5 7 1 . . . 1 . . . . 2 Full Trace Events 6 | . 2 . . . . . 2 1 1 . . . . . . . . . . Feedback Events . | . . . . . . . . . . . . . . . . . . . . Feedback Blocked . | . . . . . . . . . . . . . . . . . . . . Robot Schematics Acquired 1 | . . . . . . . . . . . . . . . . . . . 1 Robots Built . | . . . . . . . . . . . . . . . . . . . . Authchips . | . . . . . . . . . . . . . . . . . . . . Time . | . . . . . . . . . . . . . . . . . . . . Total Robot Build Rating . | . . . . . . . . . . . . . . . . . . . . Part Schematics Acquired 12 | . 1 . . . . 2 3 . 2 . . . . . . . 4 . . Parts Built . | . . . . . . . . . . . . . . . . . . . . Authchips . | . . . . . . . . . . . . . . . . . . . . Time . | . . . . . . . . . . . . . . . . . . . . Total Part Build Rating . | . . . . . . . . . . . . . . . . . . . . Parts Repaired . | . . . . . . . . . . . . . . . . . . . . Time . | . . . . . . . . . . . . . . . . . . . . Parts Recycled . | . . . . . . . . . . . . . . . . . . . . Recycled Matter . | . . . . . . . . . . . . . . . . . . . . Retrieved Matter . | . . . . . . . . . . . . . . . . . . . . Retrieved Components 13 | . . . . . . . 13 . . . . . . . . . . . . Parts Scanalyzed . | . . . . . . . . . . . . . . . . . . . . Part Schematics Acquired . | . . . . . . . . . . . . . . . . . . . . Parts Damaged . | . . . . . . . . . . . . . . . . . . . . Bothacking | -11 -10 -10 -10 -9 -8 -8 -8 -6 -6 -6 -5 -4 -4 -4 -4 -4 -4 -3 -3 ------------ Run | Jun Mat Min Exi Min Mat Sto Rec Fac Ext Cet Fac Fac Gar Fac Upp Upp Zhi Pro Res Used RIF Installer 1 | . . . . . . . . . . . . . 1 . . . . . . Robots Hacked . | . . . . . . . . . . . . . . . . . . . . Non-combat . | . . . . . . . . . . . . . . . . . . . . Combat . | . . . . . . . . . . . . . . . . . . . . Robot Hacks Applied . | . . . . . . . . . . . . . . . . . . . . Relay Couplers Released 14 | . . . . . . . . 2 . . 2 . 9 1 . . . . . Machine Destruction 14 | . . . . . . . . 2 . . 2 . 9 1 . . . . . Fabnet Peak Effective % . | . . . . . . . . . . . . . . . . . . . . Robots Rewired 15 | . . . . . . . . . 13 . . . . . 2 . . . . Allies Hacked . | . . . . . . . . . . . . . . . . . . . . Hacks Repelled . | . . . . . . . . . . . . . . . . . . . . Allies | -11 -10 -10 -10 -9 -8 -8 -8 -6 -6 -6 -5 -4 -4 -4 -4 -4 -4 -3 -3 -------- Run | Jun Mat Min Exi Min Mat Sto Rec Fac Ext Cet Fac Fac Gar Fac Upp Upp Zhi Pro Res Total Allies 31 | . . . . . . . . . 22 5 . . 2 . 2 . . . . Largest Group 21 | . . . . . . . . . 21 21 5 1 3 . 2 . . . . Highest-Rated Group 949 | . . . . . . . . . 726 949 397 89 231 . 97 . . . . Highest-Rated Ally 159 | . . . . . . . . . 159 159 96 89 89 . 49 . . . . Total Orders 3 | . . . . . . . . . . 3 . . . . . . . . . STAY 2 | . . . . . . . . . . 2 . . . . . . . . . FOLLOW 1 | . . . . . . . . . . 1 . . . . . . . . . Ally Attacks 370 | . . . . . . . . . 87 162 78 . 25 . 18 . . . . Total Damage 10663 | . . . . . . . . . 1482 5550 2348 . 693 . 590 . . . . Kills 53 | . . . . . . . . . 6 28 13 . 4 . 2 . . . . Allies Corrupted 1 | . . . . . . . . . . . 1 . . . . . . . . Allies Melted . | . . . . . . . . . . . . . . . . . . . . Intel | -11 -10 -10 -10 -9 -8 -8 -8 -6 -6 -6 -5 -4 -4 -4 -4 -4 -4 -3 -3 ------- Run | Jun Mat Min Exi Min Mat Sto Rec Fac Ext Cet Fac Fac Gar Fac Upp Upp Zhi Pro Res Robot Analysis Total 5 | . . . . . . . . . 1 . . . . . . . 4 . . Derelict Logs Recovered 4 | . . 2 . . . . . . . . . . . . 2 . . . . Drone Launches . | . . . . . . . . . . . . . . . . . . . . Drone Recoveries . | . . . . . . . . . . . . . . . . . . . . Exploration | -11 -10 -10 -10 -9 -8 -8 -8 -6 -6 -6 -5 -4 -4 -4 -4 -4 -4 -3 -3 ------------- Run | Jun Mat Min Exi Min Mat Sto Rec Fac Ext Cet Fac Fac Gar Fac Upp Upp Zhi Pro Res Turns Passed 24363 | 1 961 651 1242 24 548 1399 3840 3683 2334 793 888 288 2038 567 769 908 399 901 2129 Spaces Moved 8666 | 1 401 228 515 11 219 434 986 1422 950 315 361 49 699 242 360 418 175 261 619 Core . | . . . . . . . . . . . . . . . . . . . . Treads 4117 | . 90 115 515 11 219 434 236 271 427 . 19 49 326 16 303 357 175 261 293 Legs 3713 | 1 311 113 . . . . 750 494 523 315 342 . 373 226 57 61 . . 147 Wheels 23 | . . . . . . . . . . . . . . . . . . . 23 Hover 747 | . . . . . . . . 657 . . . . . . . . . . 90 Flight 66 | . . . . . . . . . . . . . . . . . . . 66 Fastest Speed 84 | 120 120 240 240 240 160 240 160 84 117 123 112 171 169 180 190 165 164 223 193 Average Speed 198 | 120 199 250 240 240 229 240 226 138 194 153 161 211 190 197 190 217 211 223 230 Slowest Speed 400 | 120 260 400 240 240 240 240 320 262 253 178 171 226 230 229 211 223 223 223 243 Overloaded Moves . | . . . . . . . . . . . . . . . . . . . . Propulsion Burnouts . | . . . . . . . . . . . . . . . . . . . . Robots Hopped . | . . . . . . . . . . . . . . . . . . . . Cave-ins Triggered . | . . . . . . . . . . . . . . . . . . . . Exploration Rate (%) 47 | 1 62 64 91 8 22 59 99 25 87 61 10 1 80 7 60 70 74 54 18 Regions Visited 19 Branch Regions 11 Pre-discovered Areas 3 | . . . . . . . . . . . . . . . . . 3 . . Known Exits Taken 6 | . 1 1 . . 1 . . 1 . 1 . 1 . . . . . . . Unknown Exits Taken 12 | 1 . . 1 1 . 1 1 . 1 . 1 . . 1 1 1 1 1 . Scrap Searched 5 | . . . . . . . . . . . . . . . 2 . . 3 . Spaces Dug 5 | . . . . . . . . . 1 . . . . . . . . . 4 Terrain Destroyed 315 | . . . 11 . 5 . . 38 14 3 46 . 107 3 7 . 4 26 51 Melee 1 | . . . . . . . . . 1 . . . . . . . . . . Projectile 106 | . . . . . . . . 6 13 3 23 . 28 3 7 . 4 12 7 AOE 207 | . . . 11 . 5 . . 32 . . 23 . 79 . . . . 14 43 Terrain Rammed . | . . . . . . . . . . . . . . . . . . . . Walls Destroyed . | . . . . . . . . . . . . . . . . . . . . Machines Disabled . | . . . . . . . . . . . . . . . . . . . . Actions | -11 -10 -10 -10 -9 -8 -8 -8 -6 -6 -6 -5 -4 -4 -4 -4 -4 -4 -3 -3 --------- Run | Jun Mat Min Exi Min Mat Sto Rec Fac Ext Cet Fac Fac Gar Fac Upp Upp Zhi Pro Res Total 14510 | 2 488 264 519 10 246 712 2489 2853 1286 583 639 233 1231 309 397 417 195 563 1074 Wait 4679 | . 10 . . . 1 191 1395 1189 168 229 242 182 421 54 . . 3 289 305 Move 8648 | . 400 227 514 10 218 433 985 1421 949 314 360 49 698 241 359 417 174 260 619 Hop . | . . . . . . . . . . . . . . . . . . . . Pick Up 81 | . 19 2 1 . 6 6 8 10 4 10 2 1 2 3 . . 4 . 3 Fast Attach 50 | . 4 1 . . 2 6 2 9 2 . 5 . 5 . . . 3 . 11 Attach 43 | . 4 5 . . 3 . 4 8 2 1 5 . 2 . 1 . 1 1 6 Detach 15 | . 3 . . . . . 4 3 . . 2 . . . 1 . . 1 1 Swap 28 | . 2 . 2 . 2 8 . 6 2 . 3 . . 1 . . . . 2 Drop 98 | 2 7 1 . . 4 17 13 16 6 9 3 1 5 . 2 . 5 . 7 Fire 733 | . 39 28 2 . 10 49 76 189 50 20 17 . 84 10 27 . 5 12 115 Melee 21 | . . . . . . 2 . 1 18 . . . . . . . . . . Ram 2 | . . . . . . . . . . . . . . . . . . . 2 Kick 5 | . . . . . . . 1 1 . . . . . . . . . . 3 Crush . | . . . . . . . . . . . . . . . . . . . . Escape Stasis 20 | . . . . . . . . . 6 . . . 14 . . . . . . Rewire 87 | . . . . . . . 1 . 79 . . . . . 7 . . . . Trap . | . . . . . . . . . . . . . . . . . . . . Miscellaneous . | . . . . . . . . . . . . . . . . . . . . Route ------- -11/Junkyard -10/Materials (discovered 3 exits: [*Mat x2] / *Min) -10/Mines (discovered 3 exits: [*Mat x2] / *Exi) -10/Exiles (discovered 2 exits: [*Min x2]) -9/Mines -8/Materials -8/Storage (discovered 2 exits: [*Fac] / *Rec) -8/Recycling -6/Factory (discovered 4 exits: *Low x2 / *Ext x2) -6/Extension (discovered 3 exits: *Fac x2 / *Cet) -6/Cetus (discovered 2 exits: *Fac / [*Arc]) -5/Factory -4/Factory -4/Garrison (discovered 2 exits: *Fac x2) -4/Factory -4/Upper Caves -4/Upper Caves (discovered 2 exits: Res / *Zhi) -4/Zhirov -3/Proximity Caves -3/Research (discovered 3 exits: Res / Qua x2) History --------- Turn | Location | Event 2 | -11/Junkyard | Discovered new exit (range 0) 2 | -11/Junkyard | Entered Materials 103 | -10/Materials | Discovered new exit (range 16) 271 | -10/Materials | Discovered new exit (range 9) 315 | -10/Materials | Build established: Mutant 419 | -10/Materials | Identified exit to Mines 705 | -10/Materials | Discovered new exit (range 9) 846 | -10/Materials | Build established: Scavenger-Mutant 963 | -10/Materials | Entered Mines 1113 | -10/Mines | Discovered new exit (range 7) 1207 | -10/Mines | Build established: Mutant 1215 | -10/Mines | Learned Materials garrison access intel 1254 | -10/Mines | Discovered new exit (range 11) 1305 | -10/Mines | Core integrity fell below 50% 1332 | -10/Mines | Lost 5 parts (1p1n3w) 1573 | -10/Mines | Identified exit to Exiles 1602 | -10/Mines | Deemed a non-threat by the Exiles lab entrance 1614 | -10/Mines | Entered Exiles 1614 | -10/Exiles | Found Exiles lab abandoned 1651 | -10/Exiles | Discovered new exit (range 14) 2832 | -10/Exiles | Discovered new exit (range 11) 2856 | -10/Exiles | Entered Mines 2863 | -9/Mines | Received a Rocket Launcher from a helpful Derelict 2868 | -9/Mines | Discovered new exit (range 5) 2880 | -9/Mines | Entered Materials 2880 | -8/Materials | Evolved 4 slots: Propulsion x1, Utility x2, Weapon x1 2881 | -8/Materials | Loaded intel: 1 garrison access location 3047 | -8/Materials | Discovered new exit (range 9) 3254 | -8/Materials | Build established: Tank 3361 | -8/Materials | Identified exit to Storage 3428 | -8/Materials | Entered Storage 4380 | -8/Storage | Build established: Scavenger-Tank 4545 | -8/Storage | Discovered new exit (range 15) 4820 | -8/Storage | Used back door to open Recycling access 4820 | -8/Storage | Discovered new exit (range 4) 4827 | -8/Storage | Entered Recycling 4828 | -8/Recycling | Found Scrap Engine 5229 | -8/Recycling | Build established: Scavenger-Mutant 6220 | -8/Recycling | Build established: Hacker-Mutant 6530 | -8/Recycling | Build established: Hacker-Construct 6718 | -8/Recycling | Discovered new exit (range 13) 8667 | -8/Recycling | Entered Factory 8667 | -6/Factory | Evolved 4 slots: Power x1, Propulsion x1, Utility x2 8704 | -6/Factory | Identified exit to Lower Caves 8704 | -6/Factory | Identified exit to Extension 8894 | -6/Factory | Found Hvy. Reflective Plating 9046 | -6/Factory | Garrison activated, responded to threat 9086 | -6/Factory | Build established: Hacker-Gunner 9319 | -6/Factory | Destroyed 7 combat bots 9853 | -6/Factory | Build established: Hacker-Tank 10143 | -6/Factory | Cargo convoy interrupted 10238 | -6/Factory | Build established: Hacker-Mutant 10996 | -6/Factory | Build established: Hacker-Construct 11991 | -6/Factory | Core integrity fell below 50% 12350 | -6/Factory | Entered Extension 12361 | -6/Extension | Disrupted transfer network 12780 | -6/Extension | Identified exit to Factory 13286 | -6/Extension | Rescued a captive Derelict 13294 | -6/Extension | Rescued a captive Derelict 13372 | -6/Extension | Rescued a captive Derelict 13607 | -6/Extension | Rescued a captive Derelict 13842 | -6/Extension | Spotted B-75 Beast 13856 | -6/Extension | Destroyed B-75 Beast 13865 | -6/Extension | Spotted B-75 Beast 13875 | -6/Extension | Allies destroyed B-75 Beast 14102 | -6/Extension | Rescued a captive Derelict 14104 | -6/Extension | Rescued a captive Derelict 14275 | -6/Extension | Build established: Commander-Construct 14503 | -6/Extension | Rescued A7 14539 | -6/Extension | Rescued a captive Derelict 14602 | -6/Extension | Rescued a captive Derelict 14638 | -6/Extension | Discovered new exit (range 6) 14684 | -6/Extension | Entered Cetus 14684 | -6/Cetus | Accompanied by 21 allies (A7) 14689 | -6/Cetus | Acquired a Cetus Manufacturing Module code from A7 14732 | -6/Cetus | Spotted Cetus Guard 14732 | -6/Cetus | Spotted Cetus Guard 14733 | -6/Cetus | Spotted Cetus Guard 14742 | -6/Cetus | Spotted Cetus Guard 14748 | -6/Cetus | Allies destroyed Cetus Guard 14748 | -6/Cetus | Allies destroyed Cetus Guard 14751 | -6/Cetus | Allies destroyed Cetus Guard 14757 | -6/Cetus | Allies destroyed Cetus Guard 14926 | -6/Cetus | Started Cetus Manufacturing Module 14951 | -6/Cetus | Manufactured an Enhanced Grunt 14976 | -6/Cetus | Manufactured an Enhanced Grunt 15001 | -6/Cetus | Manufactured an Enhanced Grunt 15026 | -6/Cetus | Manufactured an Enhanced Grunt 15051 | -6/Cetus | Manufactured an Enhanced Grunt 15138 | -6/Cetus | Cetus Manufacturing Module disabled 15179 | -6/Cetus | Discovered new exit (range 16) 15199 | -6/Cetus | Spotted Cetus Guard 15199 | -6/Cetus | Spotted Cetus Guard 15202 | -6/Cetus | Spotted Cetus Guard 15203 | -6/Cetus | Spotted Cetus Guard 15213 | -6/Cetus | Allies destroyed Cetus Guard 15217 | -6/Cetus | Destroyed A7 15220 | -6/Cetus | Extracted ID and sensor layout for unrecognized location from A7's data core 15221 | -6/Cetus | Destroyed Cetus Guard 15224 | -6/Cetus | Allies destroyed Cetus Guard 15228 | -6/Cetus | Allies destroyed Cetus Guard 15271 | -6/Cetus | Discovered exit to Factory (range 16) 15278 | -6/Cetus | Found Prototype Protection 15281 | -6/Cetus | Found Prototype Device 15293 | -6/Cetus | Met Revision 17 15298 | -6/Cetus | Destroyed Revision 17 15477 | -6/Cetus | Entered Factory 15477 | -5/Factory | Accompanied by 5 allies 15477 | -5/Factory | Evolved 2 slots: Utility x2 15794 | -5/Factory | Build established: Hacker-Construct 15831 | -5/Factory | Garrison activated, responded to threat 16077 | -5/Factory | First assault squad dispatched 16327 | -5/Factory | Discovered new exit (range 10) 16365 | -5/Factory | Entered another Factory area 16365 | -4/Factory | Accompanied by 1 ally 16365 | -4/Factory | Evolved 2 slots: Power x1, Utility x1 16653 | -4/Factory | Identified exit to Garrison 16653 | -4/Factory | Entered Garrison 16653 | -4/Garrison | Accompanied by 1 ally 16732 | -4/Garrison | Phase Generator disabled 16784 | -4/Garrison | Triggered checkpoint 16894 | -4/Garrison | Found embedded Infiltrators 17046 | -4/Garrison | Spotted B-86 Titan 17053 | -4/Garrison | Destroyed B-86 Titan 17054 | -4/Garrison | Triggered checkpoint 17056 | -4/Garrison | Triggered checkpoint 17150 | -4/Garrison | Destroyed 10 combat bots 17294 | -4/Garrison | Triggered checkpoint 17303 | -4/Garrison | Triggered checkpoint 17730 | -4/Garrison | Triggered checkpoint 17942 | -4/Garrison | Discovered new exit (range 3) 18314 | -4/Garrison | Discovered new exit (range 9) 18334 | -4/Garrison | Triggered checkpoint 18334 | -4/Garrison | Garrison Relay disabled 18416 | -4/Garrison | Triggered checkpoint 18456 | -4/Garrison | Garrison Relay disabled 18491 | -4/Garrison | Installed Relay Interface Framework 18691 | -4/Garrison | Entered Factory 19191 | -4/Factory | First assault squad dispatched 19213 | -4/Factory | Discovered new exit (range 8) 19258 | -4/Factory | Entered Upper Caves 19329 | -4/Upper Caves | Attracted the attention of an 0b10 outpost 19374 | -4/Upper Caves | Destroyed 8 combat bots 19466 | -4/Upper Caves | Attracted the attention of an 0b10 checkpoint 19660 | -4/Upper Caves | Encountered a Warlord checkpoint 19683 | -4/Upper Caves | Learned location of 2 exits from Research 19687 | -4/Upper Caves | Learned Research stockpile data 19995 | -4/Upper Caves | Discovered new exit (range 8) 20027 | -4/Upper Caves | Entered another Upper Caves area 20027 | -4/Upper Caves | Discovered new exit (range 8) 20884 | -4/Upper Caves | Discovered new exit (range 10) 20935 | -4/Upper Caves | Entered Zhirov 20935 | -4/Zhirov | Discovered new exit (range 3) 20976 | -4/Zhirov | Met Zhirov 21025 | -4/Zhirov | Learned location of Quarantine (-3) 21025 | -4/Zhirov | Learned location of Testing (-2) 21025 | -4/Zhirov | Learned location of Command (-1) 21038 | -4/Zhirov | Zhirov requested help retrieving the SGEMP Prototype 21076 | -4/Zhirov | Found Alien Artifact 21076 | -4/Zhirov | Identified Integrated Reactor 21076 | -4/Zhirov | Installed Integrated Reactor, increased core energy generation (+10) 21106 | -4/Zhirov | Found Alien Artifact 21239 | -4/Zhirov | Cloak Generator disabled 21239 | -4/Zhirov | Attacked by Zhirov 21283 | -4/Zhirov | Zhirov detonated his lab 21334 | -4/Zhirov | Entered Proximity Caves 21337 | -3/Proximity Caves | Spotter reported a threat 21938 | -3/Proximity Caves | Discovered new exit (range 4) 22091 | -3/Proximity Caves | Received a Behemoth hack from an annoying Tinkerer 22235 | -3/Proximity Caves | Entered Research 22235 | -3/Research | Evolved 2 slots: Utility x1, Weapon x1 22236 | -3/Research | Identified exit to Quarantine 22236 | -3/Research | Identified exit to Research 22293 | -3/Research | Garrison activated, responded to threat 22373 | -3/Research | Lost 5 parts (1p2u2w) 22571 | -3/Research | Identified Med. Regenerative Plating 22661 | -3/Research | Found Prototype Device 22661 | -3/Research | Identified Exp. Thermal Shield (x2) 23786 | -3/Research | System corruption reached 10% 23830 | -3/Research | Lost 4 parts (2u2w) 23971 | -3/Research | Destroyed 7 combat bots 24254 | -3/Research | System corruption reached 30% 24327 | -3/Research | Core integrity fell below 50% 24359 | -3/Research | Core integrity fell below 20% 24365 | -3/Research | Core destroyed Last Messages --------------- 24353_ Recycling unit begins recycling process. 24354_ Overheating: Matter decay (-10). 24355_ Arm. Scrap Engine consumes Broken Railgun. 24355_ System corrupted: Heat flow error (+107). 24355_ R-10 Processor inserts Imp. Antigrav System into recycling unit. 24357_ Arm. Scrap Engine consumes Broken Railgun. 24358_ Overheating: Huge Storage Unit damaged (-34). 24358_ R-10 Processor inserts Unknown Processor into recycling unit. 24359_ Overheating: Core damaged (-156). 24361_ R-10 Processor inserts Xenon Bombardment Thruster into recycling unit. 24362_ Recycling unit begins recycling process. 24362_ Acquired Unknown Energy Gun. 24362_ Identified Backup Laser VII. 24363_ Backup Laser VII broken. 24363_ Overheating: Short circuit. 24364_ Overheating: Energy bleed (-128). 24364_ Slammed into P-80 Master. 24364_ R-10 Processor inserts Sml. Battery into recycling unit. 24365_ Overheating: Core damaged (-260). Map ----- +----------------------------------------------------+ | ?????????????????????????????# """ ?? | | ?????????????????????????????# """ ??? | | ??????????????????????"""????# """ ??? | | ??????????????????????"""??### """ ??? | | ??????????????????????"""??+ """ ???? | | ? ????????????????"""??### """ ???? | | """?????????????"""????# """ ??? | | """"???????????????????# #?##????? | | """"???????????????????# #???????? | | """????????#####+###### #???????? | | ??????? #???????? | | ??????? #???????? | | ???????? #???????? | | ? ????????? +?? | | ?# ############################ ###########???? | | ?# # #?????????????# #?????????????? | | ?# # #?????????????# #?????????????? | | ?# # #?????????????# #?????????????? | | # # #????########## #?????????????! | | # + #????# """ # #?????????????? | | + # #???## "Y" # #?????????????? | | # # #???#=! "R" # #?????????????? | | # # =###### %*= # ###########???? | | ?# # =%+![! +==!= # | | ?# # |######p=% != + | | ?# # #????#@ !*!/ # | | ?# # #????# =!= ###########+####? | | ?# ##############????# #???????????????? | | ?# #?????????????????##########???????????????? | | ?# #??????????????????????????????????????????? | | ## #??????????????????????????????????????????? | | #??????????????????????????????????????????? | | #??????????????????????????????????????????? | | #??????????????????????????????????????????? | | #??????????????????????????????????????????? | | #######??????????????????????????????????????????? | | ?????????????????????????????????????????????????? | | ?????????????????????????????????????????????????? | | ???????????????????????>?????????????????????????? | | ?????????????????????????????????????????????????? | | ?????????????????????????????????????????????????? | | ?????????????????????????????????????????????????? | | ?????????????????????????????????????????????????? | | ??????????????????????????????????""?????????????? | | ??????????????????????????????????"""????????????? | | ???????????????????????????????????S"????????????? | | ??????????????????????????????????"""????????????? | | ??????????????????????????????????"""????????????? | | ?????????????????????????????????????????????????? | | ?????????????????????????????????????????????????? | +----------------------------------------------------+ Best States ------------- Heat Dissipation 112 Energy Generation 97 Energy Capacity 1924 Matter Stores 300 Matter Capacity 300 Sight Range 16 Terrain Scan Range 16 Terrain Scan Density 10 Base Temperature (-) 200 Armor Coverage 450 Resistance: KI 20 Resistance: TH 20 Resistance: EX 20 Resistance: EM 20 Resistance: I 20 Resistance: S 20 Resistance: P 20 Propulsion Shielding 90 Weapon Cycling 20 Evasion (%) 58 Recoil Reduction 4 Offensive Hacking 22 Defensive Hacking 14 Item Schematics ----------------- Hcp. Storage Unit | -10/Materials | Hacked Pulse Rifle | -8/Storage | Hacked Adv. Treads | -8/Storage | Hacked Lightning Gun | -8/Recycling | Hacked Focal Shield | -8/Recycling | Hacked Remote Shield | -8/Recycling | Hacked System Guard | -6/Extension | Hacked Matter Compressor | -6/Extension | Hacked Assault Drone Bay | -4/Zhirov | Free Exp. Heat Sink | -4/Zhirov | Free Exp. Optical Array | -4/Zhirov | Free Imp. Arc Thrower | -4/Zhirov | Free Robot Schematics ------------------ A-15 Conveyor | -3/Research | Hacked Fabricated ------------ Nothing Alien Tech Used ----------------- Integrated Reactor Achievements -------------- None Challenges ------------ None Game ------ Seed EncryptedThermicScreen Manual? 0 Play Time 02:30:17 Cumulative 218.4 hours Start 2023.06.15 @ 12:56:50 End 2023.06.15 @ 16:09:46 Sessions 1 Manual Loads 0 Difficulty Adventurer Special Mode None Game No. 163 Rogue 63 Adventurer 74 Explorer 26 Win Type - Total 1 Types 1/0/0/0/0/0/0/0/0 Lore% 60 Gallery% 71 Achievement% 68 Wizard Run 0 Options --------- ASCII 0 Keyboard 0 Movement Mouse Keybinds 0 Fullscreen 0 Font 16/Smallcaps Map View 76x50 Tactical HUD 1 Map Filters NONE Filters BRIGHTNESS(115)|SATURATION(100)|LOW_CONTRAST(0,16,30) Steam 1 RUN: a3379a03-1997-4d96-9ec0-fa9b6c07bee1